fUSD/lending_fUSD_20241111
["ID","MTS","AMOUNT","RATE_DAILY","PERIOD"]
[341926980,1731300638750,-150.0,0.00014895,2]
[341926981,1731300638759,-755.422,0.00014897,2]
[341926982,1731300638769,-168.88065942,0.00014898,2]
[341926983,1731300638778,-200.0,0.00014899,2]
[341926984,1731300638788,-505.37410346,0.00014899,2]
[341926985,1731300638797,-506.18443737,0.00014899,2]
[341926986,1731300638807,-505.06606855,0.00014899,2]
[341926987,1731300638816,-500.0,0.00014899,2]
[341926988,1731300638826,-585.22459934,0.00014899,2]
[341926989,1731300638835,-500.0,0.00014899,2]
[341926990,1731300638845,-500.0,0.00014899,2]
[341926991,1731300638853,-502.07075228,0.00014899,2]
[341926992,1731300638862,-502.45500289,0.00014899,2]
[341926993,1731300638871,-503.10022659,0.00014899,2]
[341926994,1731300638883,-500.0,0.00014899,2]
[341926995,1731300638893,-500.0,0.00014899,2]
[341926996,1731300638902,-500.0,0.00014899,2]
[341926997,1731300638911,-500.0,0.00014899,2]
[341926998,1731300638920,-6282.66863081,0.000149,3]
[341926999,1731300638929,-400.0,0.000149,2]
[341927000,1731300638938,-500.0,0.000149,3]
[341927001,1731300638947,-500.0,0.000149,3]
[341927002,1731300638956,-500.0,0.000149,3]
[341927003,1731300638965,-500.0,0.000149,3]
[341927004,1731300638974,-500.0,0.000149,3]
[341927005,1731300638983,-500.0,0.000149,3]
[341927006,1731300638993,-500.0,0.000149,3]
[341927007,1731300639006,-500.0,0.000149,3]
[341927008,1731300639015,-306.08710647,0.000149,3]
[341927009,1731300639024,-150.02419703,0.000149,2]
[341927010,1731300639033,-150.0,0.000149,2]
[341927011,1731300639042,-150.03778791,0.000149,2]
[341927012,1731300639051,-150.03275442,0.000149,2]
[341927013,1731300639060,-150.04719845,0.000149,2]
[341927014,1731300639069,-990.89886818,0.000149,2]
[341927015,1731300639079,-150.0,0.000149,2]
[341927016,1731300639089,-500.0,0.000149,2]
[341927017,1731300639098,-150.0,0.000149,2]
[341927018,1731300639107,-1202.0,0.000149,2]
[341927019,1731300639117,-170.00083269,0.000149,2]
[341927020,1731300639129,-8500.0,0.000149,2]
[341927021,1731300639138,-2720.30848928,0.000149,2]
[341927022,1731300639148,-2720.30848928,0.000149,2]
[341927023,1731300639157,-2720.30848928,0.000149,2]
[341927024,1731300639166,-2720.30848928,0.000149,2]
[341927025,1731300639175,-2720.30848928,0.000149,2]
[341927026,1731300639184,-2720.30848928,0.000149,2]
[341927027,1731300639193,-2720.30848928,0.000149,2]
[341927028,1731300639202,-333.72789644,0.000149,2]
[341927030,1731300641882,-793.65409257,0.000149,2]
[341927031,1731300641894,-623.945,0.000149,2]
[341927035,1731300643122,-150.0,0.00014766,2]
[341927036,1731300643132,-968.98150027,0.000149,2]
[341927037,1731300643141,-2631.61068031,0.000149,2]
[341927038,1731300643391,-150.0,0.00014723,2]
[341927039,1731300643400,-150.0,0.00014841,2]
[341927040,1731300643409,-88.69780897,0.000149,2]
[341927041,1731300643418,-2720.30848928,0.000149,2]
[341927042,1731300643427,-1996.83970129,0.000149,2]
[341927043,1731300643438,-723.46878799,0.000149,2]
[341927044,1731300643447,-2720.30848928,0.000149,2]
[341927045,1731300643456,-2538.81252304,0.000149,2]
[341927046,1731300643554,-150.0,0.00014872,2]
[341927047,1731300643563,-114.08084632,0.000149,2]
[341927051,1731300795578,500.0,0.00025139,120]
[341927052,1731300804203,2000.0,0.00025139,120]
[341927053,1731300819832,200.0,0.00025139,120]
[341927055,1731301087322,295.56,0.00011741,2]
[341927063,1731301320522,-157.013,0.0001224,2]
[341927065,1731301396393,500.0,0.00025139,120]
[341927066,1731301405588,2000.0,0.00025139,120]
[341927067,1731301420439,200.0,0.00025139,120]
[341927077,1731301814566,280.78,0.00011327,2]
[341927078,1731301832210,-200.0,0.00013135,2]
[341927079,1731301832221,-409.86344662,0.00013135,2]
[341927080,1731301832482,-38.57655338,0.00013135,2]
[341927081,1731301832494,-312.17,0.00013144,2]
[341927082,1731301832505,-99.25344662,0.00013151,2]
[341927083,1731301832519,-812.9464343,0.00013151,2]
[341927084,1731301832545,-517.85511205,0.00013151,2]
[341927085,1731301832558,-422.36500703,0.00013151,2]
[341927086,1731301832568,-250.31,0.00013167,2]
[341927087,1731301832578,-600.35360827,0.00013167,2]
[341927088,1731301832590,-442.46407517,0.00013167,2]
[341927089,1731301832604,-770.85231656,0.00013167,2]
[341927090,1731301832615,-868.79,0.00013181,2]
[341927091,1731301832626,-166.89,0.000132,2]
[341927092,1731301832638,-389.01,0.00013221,2]
[341927093,1731301832649,-451.76131617,0.00013223,2]
[341927094,1731301832662,-3479.96276234,0.00013223,2]
[341927095,1731301835408,-12435.59732951,0.00013223,2]
[341927096,1731301835421,-620.02859198,0.00013223,2]
[341927097,1731301835432,-619.89,0.00013223,2]
[341927098,1731301835445,-697.41,0.00013223,2]
[341927099,1731301835456,-1194.97,0.00013223,2]
[341927100,1731301835468,-208.73,0.00013223,2]
[341927101,1731301835479,-1501.22,0.00013223,2]
[341927102,1731301835488,-255.03,0.00013223,2]
[341927103,1731301835498,-250.0,0.00013224,2]
[341927104,1731301835508,-437.56,0.00013225,2]
[341927105,1731301835518,-521.98,0.00013226,2]
[341927106,1731301835529,-500.0,0.00013272,2]
[341927107,1731301835541,-250.0,0.00013282,2]
[341927108,1731301835552,-156.62,0.00013298,2]
[341927109,1731301835562,-1000.0,0.00013303,2]
[341927110,1731301835572,-280.78,0.00013591,2]
[341927111,1731301835583,-2150.9,0.00013599,2]
[341927112,1731301835593,-2150.9,0.00013606,2]
[341927113,1731301835603,-2150.9,0.00013613,2]
[341927114,1731301835613,-468.82,0.0001362,2]
[341927115,1731301835623,-2150.9,0.0001362,2]
[341927116,1731301835633,-2150.9,0.00013627,2]
[341927117,1731301835646,-2150.9,0.00013634,2]
[341927118,1731301835656,-2150.9,0.00013642,2]
[341927119,1731301835666,-150.0,0.00013642,2]
[341927120,1731301835676,-2150.9,0.00013649,2]
[341927121,1731301835686,-283.33,0.00013651,2]
[341927122,1731301835697,-2150.9,0.00013656,2]
[341927123,1731301835707,-2150.9,0.00013663,2]
[341927124,1731301835717,-2150.9,0.0001367,2]
[341927125,1731301835727,-2150.9,0.00013677,2]
[341927126,1731301835738,-2150.9,0.00013685,2]
[341927127,1731301835748,-2150.9,0.00013692,2]
[341927128,1731301835759,-200.0,0.00013699,2]
[341927129,1731301835769,-2150.9,0.00013699,2]
[341927130,1731301835779,-200.0,0.000137,2]
[341927131,1731301835791,-256.00568647,0.000137,2]
[341927132,1731301835801,-500.0,0.000137,2]
[341927133,1731301835811,-500.0,0.000137,2]
[341927134,1731301835821,-2150.9,0.00013706,2]
[341927135,1731301835832,-2150.9,0.00013713,2]
[341927136,1731301835842,-2150.9,0.0001372,2]
[341927137,1731301835852,-2150.9,0.00013727,2]
[341927138,1731301835862,-2150.9,0.00013735,2]
[341927139,1731301835872,-250.31,0.00013825,2]
[341927140,1731301835883,-611.15,0.00014192,2]
[341927141,1731301835894,-163.78,0.00014192,2]
[341927142,1731301835904,-2893.07,0.00014247,2]
[341927143,1731301835915,-150.0,0.00014436,2]
[341927144,1731301835925,-250.31,0.00014484,2]
[341927145,1731301835936,-150.0,0.00014663,2]
[341927146,1731301835946,-13631.0,0.00014663,2]
[341927147,1731301835957,-1159.0,0.00014663,2]
[341927148,1731301835967,-1091.0,0.00014663,2]
[341927149,1731301835978,-2494.487,0.00014738,2]
[341927150,1731301835988,-150.0,0.00014741,2]
[341927151,1731301835999,-150.0,0.00014744,2]
[341927152,1731301836009,-1250.49782743,0.00014748,2]
[341927153,1731301836020,-1250.49782735,0.00014765,2]
[341927154,1731301836031,-150.0,0.00014769,2]
[341927155,1731301836041,-150.0,0.00014777,2]
[341927156,1731301836052,-1250.49782735,0.00014782,2]
[341927157,1731301836063,-150.0,0.00014792,2]
[341927158,1731301836073,-151.14352724,0.00014795,2]
[341927159,1731301836083,-1250.49782735,0.00014799,2]
[341927160,1731301836094,-3526.3899,0.000148,2]
[341927161,1731301836104,-150.0,0.00014809,2]
[341927162,1731301836115,-150.0,0.0001481,2]
[341927163,1731301836125,-150.0,0.00014811,2]
[341927164,1731301836136,-150.0,0.00014813,2]
[341927165,1731301836148,-1250.49782735,0.00014816,2]
[341927166,1731301836158,-360.68,0.00014828,3]
[341927167,1731301836169,-150.0,0.0001483,2]
[341927168,1731301836179,-1250.49782735,0.00014832,2]
[341927169,1731301836189,-150.0,0.00014833,2]
[341927170,1731301836199,-412.55033761,0.00014837,2]
[341927171,1731301836209,-271.76472322,0.00014837,2]
[341927172,1731301836220,-30599.15543154,0.00014838,2]
[341927173,1731301836233,-6991.46031155,0.00014838,2]
[341927175,1731301838359,-2735.53908701,0.00014838,2]
[341927176,1731301838372,-26862.5187699,0.00014838,2]
[341927177,1731301838382,-150.110806,0.00014848,2]
[341927178,1731301838394,-1250.49782735,0.00014849,2]
[341927179,1731301838406,-150.0,0.00014865,2]
[341927180,1731301838416,-1250.49782735,0.00014866,2]
[341927181,1731301838426,-1250.49782735,0.00014883,2]
[341927182,1731301838436,-985.7033723,0.00014888,2]
[341927183,1731301838447,-1997.152419,0.00014888,2]
[341927184,1731301838457,-858.7364922,0.00014888,2]
[341927185,1731301838467,-232.5159857,0.00014888,2]
[341927186,1731301838479,-163.7110762,0.00014888,2]
[341927187,1731301838490,-150.0,0.00014889,2]
[341927188,1731301838500,-840.408,0.0001489,2]
[341927189,1731301838510,-400.0,0.00014897,2]
[341927190,1731301838521,-500.0,0.00014898,2]
[341927191,1731301838531,-500.0,0.00014898,2]
[341927192,1731301838542,-500.0,0.00014898,2]
[341927193,1731301838552,-400.0,0.00014898,2]
[341927194,1731301838562,-500.0,0.00014898,2]
[341927195,1731301838572,-500.0,0.00014898,2]
[341927196,1731301838582,-524.48,0.00014898,2]
[341927197,1731301838592,-524.48,0.00014898,2]
[341927198,1731301838603,-524.48,0.00014898,2]
[341927199,1731301838613,-2399.97,0.00014898,2]
[341927200,1731301838623,-2399.97,0.00014898,2]
[341927201,1731301838633,-2399.97,0.00014898,2]
[341927202,1731301838644,-500.0,0.00014898,2]
[341927203,1731301838654,-200.0,0.00014898,2]
[341927204,1731301838664,-32610.29959666,0.00014899,2]
[341927205,1731301838689,-7348.7170475,0.00014899,2]
[341927206,1731301838701,-4120.35688326,0.00014899,2]
[341927207,1731301838714,-577.54688193,0.00014899,2]
[341927208,1731301838739,-264.27066251,0.00014899,2]
[341927216,1731301840346,-795.08000002,0.00014899,2]
[341927217,1731301840358,-936.04999999,0.00014899,2]
[341927218,1731301840518,-551.33680855,0.00014899,2]
[341927240,1731301843508,-150.0,0.0001472,2]
[341927241,1731301843517,-150.0,0.00014731,2]
[341927242,1731301843526,-150.0,0.00014732,2]
[341927243,1731301843535,-150.0,0.00014733,2]
[341927244,1731301843544,-150.0,0.00014734,2]
[341927245,1731301843553,-121.95386234,0.00014762,2]
[341927246,1731301843565,-28.04613766,0.00014762,2]
[341927247,1731301843574,-150.0,0.00014766,2]
[341927248,1731301843583,-150.0,0.00014768,2]
[341927249,1731301843592,-150.0,0.00014768,2]
[341927250,1731301843601,-150.0,0.00014769,2]
[341927251,1731301843610,-150.0,0.00014772,2]
[341927252,1731301843619,-150.0,0.00014773,2]
[341927253,1731301843628,-150.0,0.00014779,2]
[341927255,1731301843637,-150.0,0.00014783,2]
[341927256,1731301843646,-150.0,0.00014784,2]
[341927257,1731301843655,-150.0,0.00014802,2]
[341927258,1731301843664,-150.0,0.00014815,2]
[341927259,1731301843673,-150.0,0.00014821,2]
[341927260,1731301843682,-150.0,0.00014823,2]
[341927261,1731301843691,-150.0,0.0001483,2]
[341927262,1731301843700,-300.0,0.00014833,2]
[341927263,1731301843709,-150.0,0.00014841,2]
[341927264,1731301843718,-150.0,0.00014845,2]
[341927265,1731301843727,-150.0,0.00014845,2]
[341927266,1731301843736,-150.0,0.00014846,2]
[341927267,1731301843746,-150.0,0.00014854,2]
[341927268,1731301843756,-150.0,0.00014856,2]
[341927269,1731301843765,-52.96468923,0.00014856,2]
[341927270,1731301843777,-97.03531077,0.00014856,2]
[341927271,1731301843786,-150.0,0.00014858,2]
[341927272,1731301843796,-150.0,0.00014861,2]
[341927273,1731301843807,-150.0,0.00014866,2]
[341927274,1731301843816,-150.0,0.00014872,2]
[341927275,1731301843825,-150.0,0.00014896,2]
[341927276,1731301843835,-150.0,0.00014898,2]
[341927277,1731301843844,-762.99256393,0.00014899,2]
[341927281,1731301995132,500.0,0.00025139,120]
[341927282,1731302002743,2000.0,0.00025139,120]
[341927283,1731302017924,205.817716,0.00025139,120]
[341927286,1731302412681,-166.87,0.00013783,2]
[341927287,1731302412704,-250.0,0.00013814,2]
[341927288,1731302412936,-255.03,0.00013814,2]
[341927289,1731302412960,-506.68,0.00013832,2]
[341927290,1731302412982,-1000.0,0.00013868,2]
[341927291,1731302413007,-300.0,0.000139,5]
[341927292,1731302413030,-600.0,0.00014,5]
[341927293,1731302413052,-900.0,0.000141,5]
[341927294,1731302413074,-1200.0,0.000142,5]
[341927295,1731302413094,-156.60652,0.00014237,2]
[341927296,1731302413116,-1600.0,0.000143,5]
[341927297,1731302413141,-1122.9,0.000143,2]
[341927298,1731302413163,-300.0,0.000144,5]
[341927299,1731302413184,-300.0,0.000145,5]
[341927300,1731302413206,-300.0,0.000146,5]
[341927301,1731302413228,-300.0,0.00014601,2]
[341927302,1731302413250,-31505.0,0.00014602,2]
[341927303,1731302413270,-300.0,0.000147,5]
[341927304,1731302413292,-282.664659,0.00014718,2]
[341927305,1731302413314,-2012.0279,0.00014738,2]
[341927306,1731302413335,-2072.3257,0.00014738,2]
[341927307,1731302413362,-150.0,0.00014787,2]
[341927308,1731302413390,-150.0,0.00014797,2]
[341927309,1731302413412,-313.37440821,0.00014798,2]
[341927310,1731302413434,-795.4338,0.00014798,2]
[341927311,1731302413456,-1719.4726,0.00014798,2]
[341927312,1731302413478,-252.9565,0.00014798,2]
[341927313,1731302413500,-820.5167,0.00014798,2]
[341927314,1731302413523,-4695.4108,0.00014798,2]
[341927315,1731302413545,-1004.1851,0.00014798,2]
[341927316,1731302413568,-22893.6166,0.00014799,2]
[341927317,1731302413597,-1336.7,0.000148,2]
[341927318,1731302413640,-643.0,0.000148,5]
[341927319,1731302413674,-313.37440821,0.00014813,2]
[341927320,1731302413697,-2741.43961481,0.00014825,2]
[341927321,1731302413720,-313.37440821,0.00014827,2]
[341927322,1731302413742,-1235.37054029,0.00014834,2]
[341927323,1731302413764,-200.0,0.00014839,2]
[341927324,1731302413786,-313.37440821,0.00014842,2]
[341927325,1731302413806,-313.37440821,0.00014856,2]
[341927326,1731302413828,-313.37440821,0.00014871,2]
[341927327,1731302413848,-500.88936095,0.00014873,2]
[341927328,1731302413868,-500.0,0.00014873,2]
[341927329,1731302413899,-150.0,0.00014875,2]
[341927330,1731302413920,-1454.5,0.0001488,2]
[341927331,1731302413942,-313.37440821,0.00014885,2]
[341927332,1731302413963,-988.8328303,0.00014887,2]
[341927333,1731302413984,-2066.9925652,0.00014887,2]
[341927334,1731302414006,-672.326,0.00014889,2]
[341927335,1731302414027,-500.0,0.00014897,2]
[341927336,1731302414049,-500.0,0.00014897,2]
[341927337,1731302414070,-302.43,0.00014897,2]
[341927338,1731302414090,-519.73195657,0.00014897,2]
[341927339,1731302414112,-500.0,0.00014897,2]
[341927340,1731302414136,-530.95,0.00014897,2]
[341927341,1731302414157,-500.0,0.00014897,2]
[341927342,1731302414178,-500.0,0.00014897,2]
[341927343,1731302414199,-507.9836777,0.00014897,2]
[341927344,1731302414219,-551.48428416,0.00014897,2]
[341927345,1731302414240,-500.0,0.00014897,2]
[341927346,1731302414261,-500.0,0.00014897,2]
[341927347,1731302414281,-500.0,0.00014897,2]
[341927348,1731302414303,-2217.06,0.00014897,2]
[341927349,1731302414323,-2217.06,0.00014897,2]
[341927350,1731302414345,-2217.06,0.00014897,2]
[341927351,1731302414365,-500.0,0.00014897,2]
[341927352,1731302414389,-238.92767656,0.00014897,2]
[341927353,1731302414417,-160.867206,0.00014898,2]
[341927354,1731302414443,-400.0,0.00014898,2]
[341927355,1731302414466,-574.88935292,0.00014898,2]
[341927356,1731302414489,-500.0,0.00014898,2]
[341927357,1731302414511,-500.0,0.00014898,2]
[341927358,1731302414537,-500.0,0.00014898,2]
[341927359,1731302414558,-500.0,0.00014898,2]
[341927360,1731302414582,-500.0,0.00014898,2]
[341927361,1731302414604,-500.0,0.00014898,2]
[341927362,1731302414630,-500.0,0.00014898,2]
[341927363,1731302414653,-500.0,0.00014898,2]
[341927364,1731302414674,-500.0,0.00014898,2]
[341927365,1731302414698,-518.66593694,0.00014898,2]
[341927366,1731302414719,-500.0,0.00014898,2]
[341927367,1731302414741,-500.0,0.00014898,2]
[341927368,1731302414762,-500.0,0.00014898,2]
[341927369,1731302414784,-500.0,0.00014898,2]
[341927370,1731302414805,-500.0,0.00014898,2]
[341927371,1731302414825,-500.0,0.00014898,2]
[341927372,1731302414845,-628.92294219,0.00014898,2]
[341927373,1731302414865,-500.0,0.00014898,2]
[341927374,1731302414888,-515.66394017,0.00014898,2]
[341927375,1731302414908,-500.0,0.00014898,2]
[341927376,1731302414929,-500.0,0.00014898,2]
[341927377,1731302414951,-500.0,0.00014898,2]
[341927378,1731302414970,-500.0,0.00014898,2]
[341927379,1731302414990,-500.0,0.00014898,2]
[341927380,1731302415010,-500.0,0.00014898,2]
[341927381,1731302415030,-500.0,0.00014898,2]
[341927382,1731302415049,-500.0,0.00014898,2]
[341927383,1731302415068,-647.71,0.00014898,2]
[341927384,1731302415087,-500.0,0.00014898,2]
[341927385,1731302415107,-490.18541569,0.00014898,2]
[341927386,1731302415128,-301.45226861,0.00014898,2]
[341927387,1731302415148,-172.24917195,0.00014898,2]
[341927388,1731302415169,-500.0,0.00014898,2]
[341927389,1731302415191,-500.0,0.00014898,2]
[341927390,1731302415211,-500.0,0.00014898,2]
[341927391,1731302415231,-500.0,0.00014898,2]
[341927392,1731302415251,-500.0,0.00014898,2]
[341927393,1731302415270,-526.99338808,0.00014898,2]
[341927394,1731302415289,-404.28420156,0.00014898,2]
[341927395,1731302415308,-500.0,0.00014898,2]
[341927396,1731302415328,-500.0,0.00014898,2]
[341927397,1731302415347,-247.78389027,0.00014898,2]
[341927398,1731302415366,-151.0,0.00014898,2]
[341927399,1731302415389,-151.0,0.00014898,2]
[341927400,1731302415409,-560.18,0.00014898,2]
[341927401,1731302415428,-560.18,0.00014898,2]
[341927402,1731302415447,-500.0,0.00014898,2]
[341927403,1731302415466,-500.0,0.00014898,2]
[341927404,1731302415486,-500.0,0.00014898,2]
[341927405,1731302415505,-500.0,0.00014898,2]
[341927406,1731302415526,-500.0,0.00014898,2]
[341927407,1731302415546,-243.97664076,0.00014898,2]
[341927408,1731302415567,-500.0,0.00014898,2]
[341927409,1731302415588,-500.0,0.00014898,2]
[341927410,1731302415615,-500.0,0.00014898,2]
[341927411,1731302415639,-151.0,0.00014898,2]
[341927412,1731302415658,-500.0,0.00014898,2]
[341927413,1731302415679,-500.0,0.00014898,2]
[341927414,1731302415702,-9765.86,0.00014898,2]
[341927415,1731302415723,-9765.86,0.00014898,2]
[341927416,1731302415742,-151.659498,0.00014898,2]
[341927417,1731302415762,-1109.38,0.00014898,2]
[341927418,1731302415782,-1109.38,0.00014898,2]
[341927419,1731302415802,-1109.38,0.00014898,2]
[341927420,1731302415823,-624.9510624,0.00014898,2]
[341927421,1731302415844,-500.0,0.00014898,2]
[341927422,1731302415864,-564.51771535,0.00014898,2]
[341927423,1731302415890,-151.0,0.00014898,2]
[341927424,1731302415912,-516.72498208,0.00014898,2]
[341927425,1731302415938,-505.21100612,0.00014898,2]
[341927426,1731302415960,-500.0,0.00014898,2]
[341927427,1731302415988,-500.0,0.00014898,2]
[341927428,1731302416012,-507.36227203,0.00014898,2]
[341927429,1731302416035,-523.33580905,0.00014898,2]
[341927430,1731302416057,-501.14813317,0.00014898,2]
[341927431,1731302416079,-501.79217619,0.00014898,2]
[341927432,1731302416103,-500.23803452,0.00014898,2]
[341927433,1731302416129,-500.0,0.00014898,2]
[341927434,1731302416152,-545.9079815,0.00014898,2]
[341927435,1731302416176,-500.0,0.00014898,2]
[341927436,1731302416200,-500.0,0.00014898,2]
[341927437,1731302416222,-429.97,0.00014898,2]
[341927438,1731302416436,-153.763682,0.00014898,2]
[341927439,1731302416461,-151.0,0.00014898,2]
[341927440,1731302416484,-8569.92,0.00014898,2]
[341927441,1731302416507,-8569.92,0.00014898,2]
[341927442,1731302416529,-8569.92,0.00014898,2]
[341927443,1731302416552,-151.0,0.00014898,2]
[341927444,1731302416576,-4293.731315,0.00014898,2]
[341927445,1731302416597,-152.093272,0.00014898,2]
[341927446,1731302416623,-260.709001,0.00014898,2]
[341927447,1731302416652,-500.0,0.00014898,2]
[341927448,1731302416675,-621.06,0.00014898,2]
[341927449,1731302416701,-4293.731315,0.00014898,2]
[341927450,1731302416722,-260.709001,0.00014898,2]
[341927451,1731302416743,-151.0,0.00014898,2]
[341927452,1731302416764,-504.96482765,0.00014898,2]
[341927453,1731302416787,-500.0,0.00014898,2]
[341927454,1731302416808,-500.0,0.00014898,2]
[341927455,1731302416829,-500.0,0.00014898,2]
[341927456,1731302416851,-541.77464644,0.00014898,2]
[341927457,1731302416872,-500.0,0.00014898,2]
[341927458,1731302416900,-500.0,0.00014898,2]
[341927459,1731302416921,-500.0,0.00014898,2]
[341927460,1731302416942,-523.29730264,0.00014898,2]
[341927461,1731302416964,-500.0,0.00014898,2]
[341927462,1731302416987,-151.0,0.00014898,2]
[341927463,1731302417008,-324.927308,0.00014898,2]
[341927464,1731302417030,-324.927308,0.00014898,2]
[341927465,1731302417052,-153.697808,0.00014898,2]
[341927466,1731302417073,-324.927308,0.00014898,2]
[341927467,1731302417095,-324.927308,0.00014898,2]
[341927468,1731302417119,-500.0,0.00014898,2]
[341927469,1731302417149,-500.0,0.00014898,2]
[341927470,1731302417171,-513.68564307,0.00014898,2]
[341927471,1731302417193,-1840.31,0.00014898,2]
[341927472,1731302417216,-1840.31,0.00014898,2]
[341927473,1731302417240,-1840.31,0.00014898,2]
[341927474,1731302417262,-151.0,0.00014898,2]
[341927475,1731302417284,-500.28830328,0.00014898,2]
[341927476,1731302417305,-501.54194777,0.00014898,2]
[341927477,1731302417327,-502.04411244,0.00014898,2]
[341927478,1731302417351,-47093.76932215,0.00014899,2]
[341927480,1731302500656,252.7,0.00011975,2]
[341927486,1731302596216,500.0,0.00025139,120]
[341927487,1731302604177,2000.0,0.00025139,120]
[341927490,1731302678984,150.0,0.00013,5]
[341927504,1731302950662,152.0,0.00020546,30]
[341927560,1731303031534,-1234.83695735,0.00013412,2]
[341927566,1731303031596,-802.45951065,0.00013412,2]
[341927568,1731303031606,-5904.28544849,0.0001348,2]
[341927570,1731303031615,-200.0,0.000137,2]
[341927572,1731303031624,-1000.0,0.00013853,2]
[341927574,1731303031633,-226.66,0.00013859,2]
[341927576,1731303031642,-250.0,0.0001386,2]
[341927578,1731303031651,-4208.9561067,0.00013916,2]
[341927580,1731303031663,-19691.0438933,0.00013916,2]
[341927582,1731303031672,-252.7,0.00014238,2]
[341927584,1731303031681,-586.00830105,0.00014303,2]
[341927586,1731303031707,-150.0,0.00014729,2]
[341927588,1731303031717,-150.0,0.00014732,2]
[341927591,1731303031726,-150.0,0.0001474,2]
[341927593,1731303031735,-150.0,0.00014766,2]
[341927594,1731303031744,-150.0,0.00014776,2]
[341927596,1731303031753,-150.0,0.00014777,2]
[341927598,1731303031763,-150.0,0.0001478,2]
[341927601,1731303031773,-150.0,0.00014791,2]
[341927603,1731303031782,-575.81133881,0.00014799,2]
[341927605,1731303031792,-200.0,0.000148,2]
[341927608,1731303031801,-156.68720411,0.000148,2]
[341927611,1731303031815,-150.0,0.00014807,2]
[341927613,1731303031825,-575.81133876,0.0001481,2]
[341927615,1731303031834,-575.81133876,0.00014821,2]
[341927617,1731303031843,-575.81133876,0.00014833,2]
[341927619,1731303031851,-575.81133876,0.00014844,2]
[341927621,1731303031862,-150.0,0.00014845,2]
[341927623,1731303031871,-150.0,0.00014845,2]
[341927625,1731303031881,-150.0,0.00014869,2]
[341927627,1731303031890,-162.12988745,0.00014873,2]
[341927629,1731303031899,-291.87698711,0.00014873,2]
[341927631,1731303031908,-150.0,0.00014879,2]
[341927633,1731303031917,-326.6972745,0.00014887,2]
[341927635,1731303031926,-682.9069756,0.00014887,2]
[341927636,1731303031934,-150.0,0.00014888,2]
[341927638,1731303031943,-150.0,0.00014888,2]
[341927640,1731303031952,-150.0,0.00014894,2]
[341927642,1731303031962,-505.9304721,0.00014898,2]
[341927644,1731303031970,-501.571815,0.00014898,2]
[341927646,1731303031979,-151.0,0.00014898,2]
[341927649,1731303031988,-182.86839366,0.00014898,2]
[341927652,1731303031997,-151.0,0.00014898,2]
[341927655,1731303032006,-151.0,0.00014898,2]
[341927658,1731303032015,-414.878586,0.00014898,2]
[341927661,1731303032024,-283.72658548,0.00014898,2]
[341927664,1731303032034,-500.0,0.00014898,2]
[341927667,1731303032043,-481.35,0.00014898,2]
[341927670,1731303032052,-414.878586,0.00014898,2]
[341927672,1731303032061,-500.0,0.00014898,2]
[341927675,1731303032071,-500.0,0.00014898,2]
[341927679,1731303032080,-1064.116199,0.00014898,2]
[341927681,1731303032090,-536.45,0.00014898,2]
[341927685,1731303032099,-1064.116199,0.00014898,2]
[341927687,1731303032109,-500.0,0.00014898,2]
[341927689,1731303032118,-531.65622659,0.00014898,2]